bitfinex-derivatives/quotes_ETHF0:USTF0_20240904
["timestamp","ask_amount","ask_price","bid_price","bid_amount"]
[1725458942846,9.2078,2408.8,2407.8,5.0]
[1725458943047,2.09289732,2409.1,2408.3,3.2078]
[1725458943048,4.26287732,2408.9,2408.3,3.2078]
[1725458943247,4.26287732,2408.9,2408.4,0.41522]
[1725458943248,0.41519,2408.7,2408.4,0.41522]
[1725458943459,3.2078,2408.9,2408.1,5.0]
[1725458943460,0.41517,2408.8,2408.5,0.4152]
[1725458943645,3.2078,2408.9,2408.1,8.2078]
[1725458943847,0.00623156,2408.7,2408.6,0.41519]
[1725458944448,0.00623156,2408.7,2408.6,4.56719]
[1725458944847,0.00623156,2408.7,2408.6,10.56719]
[1725458945050,0.00623156,2408.7,2408.6,4.152]
[1725458945256,0.42141156,2408.7,2408.5,0.41521]
[1725458945461,0.00623156,2408.7,2408.3,0.00623156]
[1725458945951,0.4152,2408.6,2408.3,0.42147156]
[1725458946154,0.00623156,2408.7,2408.3,0.00623156]
[1725458946352,0.41519,2408.6,2408.3,0.00623156]
[1725458946545,0.41519,2408.6,2408.3,0.42146156]
[1725458946750,0.00623156,2408.7,2408.3,0.00623156]
[1725458946948,0.00623156,2408.7,2408.5,0.4152]
[1725458947150,0.00623156,2408.7,2408.6,0.41519]
[1725458947552,26.32288,2409.3,2408.6,0.41519]
[1725458947553,0.58088981,2409.6,2409.5,2.49026]
[1725458947759,3.74468277,2410.3,2409.5,2.49026]
[1725458947760,1.66019314,2410.4,2409.6,5.0]
[1725458948055,0.41492,2410.2,2409.9,0.41496]
[1725458948352,3.2078,2410.2,2409.6,5.0]
[1725458948557,0.00623156,2410.1,2410.0,0.41495]
[1725458949057,0.00623156,2410.1,2410.0,1.45234]
[1725458949263,0.00623156,2410.1,2410.0,0.41495]
[1725458949952,0.00623156,2410.1,2410.0,1.45234]
[1725458950152,0.00623156,2410.1,2409.9,0.41496]
[1725458950454,0.00623156,2410.1,2410.0,0.41495]
[1725458950850,0.00623156,2410.1,2410.0,4.56455]
[1725458951059,0.00623156,2410.1,2410.0,12.63933]
[1725458951566,0.00623156,2410.1,2410.0,16.60194]
[1725458951955,0.00623156,2410.1,2410.0,10.60194]
[1725458952152,0.00623156,2410.1,2410.0,16.60194]
[1725458952358,0.00623156,2410.1,2410.0,9.56455]
[1725458952555,0.00623156,2410.1,2410.0,16.60194]
[1725458953278,0.00623156,2410.1,2410.0,11.63933]
[1725458953454,0.00623156,2410.1,2410.0,17.63933]
[1725458954057,0.00623156,2410.1,2410.0,16.60194]
[1725458954462,0.00623156,2410.1,2410.0,9.56455]
[1725458955064,0.00623156,2410.1,2410.0,15.56455]
[1725458955372,1.07930333,2411.3,2411.2,0.41475]
[1725458955666,1.03651,2412.1,2411.2,5.41475]
[1725458955667,0.41463,2411.9,2411.2,5.41475]
[1725458955857,3.2078,2412.1,2411.7,5.0]
[1725458956056,4.24588809,2412.9,2411.7,5.0]
[1725458956057,1.07930333,2412.4,2411.7,8.2078]
[1725458956252,1.07930333,2412.8,2412.6,0.41451]
[1725458956461,2.16751975,2413.2,2412.8,0.41447]
[1725458956462,0.00621865,2412.9,2412.8,0.41447]
[1725458956663,0.3715,2413.5,2412.6,8.2078]
[1725458956664,1.07930333,2413.6,2412.6,15.24407]
[1725458956859,3.2078,2413.8,2413.5,5.0]
[1725458957057,4.28710333,2414.2,2413.5,5.0]
[1725458957254,3.74468277,2415.0,2414.2,0.41423]
[1725458957255,1.07930333,2414.3,2414.2,0.41423]
[1725458957457,3.2078,2415.3,2414.2,11.20968156]
[1725458957756,3.2078,2414.9,2414.6,5.0]
[1725458958367,3.2078,2414.8,2414.6,11.0]
[1725458958559,0.00618362,2415.0,2414.6,5.0]
[1725458958761,3.2078,2414.7,2414.6,5.0]
[1725458959162,0.00618362,2415.0,2414.6,5.0]
[1725458959360,0.00618362,2415.0,2414.6,5.41416]
[1725458959557,3.2078,2414.9,2414.6,5.0]
[1725458960363,0.00618362,2415.0,2414.6,5.0]
[1725458960664,0.41412,2414.9,2414.6,5.0]
[1725458960964,0.41415,2414.7,2414.6,5.0]
[1725458961176,0.00618362,2415.0,2414.6,5.0]
[1725458961362,0.42029362,2415.0,2414.6,5.0]
[1725458961666,0.42028362,2415.0,2414.6,5.0]
[1725458961858,0.00618362,2415.0,2414.6,5.0]
[1725458962058,3.2078,2414.9,2414.6,5.0]
[1725458962255,0.42028362,2415.0,2414.6,5.0]
[1725458962459,3.2078,2414.9,2414.6,5.0]
[1725458963261,3.2078,2414.9,2414.5,0.00621865]
[1725458963665,4.23633975,2417.0,2414.5,0.00621865]
[1725458963666,1.10711975,2417.2,2415.7,3.2078]
[1725458963975,3.2078,2419.4,2417.1,8.2078]
[1725458964274,4.87304096,2419.5,2418.9,5.0]
[1725458964520,4.87304096,2419.5,2418.8,3.2078]
[1725458964521,4.45971096,2419.5,2418.8,3.2078]
[1725458964676,4.45971096,2419.5,2419.1,3.2078]
[1725458964859,7.66751096,2419.5,2418.9,0.00620566]
[1725458965059,0.41341,2419.0,2418.9,0.00620566]
[1725458965269,0.2,2420.0,2419.0,13.51312935]
[1725458965466,3.75192096,2420.0,2419.0,16.72092935]
[1725458965764,3.75192096,2420.0,2418.9,0.00620566]
[1725458965765,0.41334,2419.4,2418.9,0.00620566]
[1725458965972,3.2078,2419.4,2418.9,0.00620566]
[1725458966275,3.2078,2419.4,2417.3,0.209]
[1725458966276,0.41354,2418.3,2417.9,3.2078]
[1725458966569,0.41355,2418.2,2417.6,3.2078]
[1725458966776,3.2078,2418.7,2418.1,3.2078]
[1725458966968,1.03333,2419.5,2418.4,3.2078]
[1725458967461,0.41344,2418.8,2418.7,0.00620566]
[1725458967776,0.41344,2418.8,2418.7,5.66e-06]
[1725458967966,0.41355,2418.2,2418.1,3.2078]
[1725458968161,0.4135,2418.5,2418.1,3.2078]
[1725458968365,3.5519153,2418.8,2418.1,3.2078]
[1725458968562,0.41355,2418.2,2418.1,3.2078]
[1725458968768,3.5519153,2418.8,2418.1,3.2078]
[1725458968962,3.5519153,2418.8,2418.2,0.00620566]
[1725458969570,3.5519153,2418.8,2418.4,3.2078]
[1725458969868,3.2078,2419.1,2418.7,3.2078]
[1725458969869,0.41341,2419.1,2418.7,3.2078]
[1725458970070,0.41341,2419.1,2418.4,3.2078]
[1725458970071,3.5519153,2419.1,2418.4,3.2078]
[1725458970270,2.06774,2418.2,2416.8,0.209]
[1725458970579,2.06774,2418.2,2417.5,3.2078]
[1725458970580,3.1383153,2418.2,2417.5,3.2078]
[1725458970781,3.1383153,2418.2,2416.6,8.59738806]
[1725458970782,3.2078,2417.6,2416.6,11.80518806]
[1725458971072,3.2078,2417.9,2416.6,5.0]
[1725458971370,0.00620566,2417.5,2417.1,0.41373]
[1725458971569,0.41369,2417.4,2417.0,0.00620566]
[1725458971782,0.00620566,2417.5,2417.0,0.00620566]
[1725458971973,3.2078,2417.3,2417.0,0.00620566]
[1725458972367,0.00620566,2417.5,2417.0,0.00620566]
[1725458972566,3.2078,2417.3,2417.0,0.00620566]
[1725458972767,0.00620566,2417.5,2417.0,0.00620566]
[1725458972982,3.2078,2417.3,2417.0,0.00620566]
[1725458973171,4.14300566,2417.5,2417.0,0.00620566]
[1725458973366,0.4137,2417.3,2417.0,0.00620566]
[1725458973684,0.00620566,2417.5,2417.0,0.00620566]
[1725458974076,0.41373,2417.1,2417.0,0.00620566]
[1725458974471,3.2078,2417.3,2417.0,0.00620566]
[1725458974677,0.41373,2417.1,2417.0,0.00620566]
[1725458975167,3.2078,2417.3,2417.0,0.00620566]
[1725458975574,3.62151,2417.3,2417.0,0.00620566]
[1725458975771,0.00620566,2417.5,2417.0,0.00620566]
[1725458975772,0.00620566,2417.5,2417.2,3.2078]
[1725458976060,4.6296,2418.9,2417.9,0.41359]
[1725458976172,4.6296,2418.9,2417.0,12.04056566]
[1725458976173,0.41351,2418.4,2417.5,3.2078]
[1725458976370,25.9078,2418.6,2417.5,3.2078]
[1725458976566,25.9078,2418.6,2417.0,1.04056566]
[1725458976567,3.2078,2418.0,2417.1,11.78257992]
[1725458976775,1.03388,2418.2,2417.1,3.2078]
[1725458976977,3.2078,2418.3,2417.4,3.2078]
[1725458977169,0.00620566,2417.9,2417.4,3.2078]
[1725458977470,0.00620566,2417.9,2417.1,3.2078]
[1725458977471,0.41367,2417.5,2417.1,3.2078]
[1725458977675,0.41366,2417.6,2417.1,3.2078]
[1725458977876,0.41363,2417.7,2417.1,3.62152]
[1725458978175,0.00620566,2417.9,2417.1,3.2078]
[1725458978377,0.41981566,2417.9,2417.1,3.2078]
[1725458978569,0.00620566,2417.9,2417.4,0.41368]
[1725458978768,0.00620566,2417.9,2417.1,3.2078]
[1725458978769,0.41363,2417.7,2417.1,3.2078]
[1725458979075,0.00620566,2417.9,2417.1,3.2078]
[1725458979273,0.00620566,2417.9,2417.8,0.41361]
[1725458979579,0.00620566,2417.9,2417.4,3.2078]
[1725458979773,0.00620566,2417.9,2417.1,3.2078]
[1725458979979,0.41361,2417.8,2417.3,3.6215]
[1725458980170,0.41981566,2417.9,2417.3,3.2078]
[1725458980370,0.00620566,2417.9,2417.4,0.41367]
[1725458980678,0.00620566,2417.9,2417.4,0.41368]
[1725458980884,0.41980566,2417.9,2417.4,0.41368]
[1725458981083,0.41980566,2417.9,2417.3,3.2078]
[1725458981084,0.00620566,2417.9,2417.3,3.2078]
[1725458981581,0.00620566,2417.9,2417.6,0.41364]
[1725458981777,0.00620566,2417.9,2417.7,0.41362]
[1725458981988,0.00620566,2417.9,2417.4,3.2078]
[1725458982182,0.00620566,2417.9,2417.3,0.41368]
[1725458982376,0.41981566,2417.9,2417.4,0.41367]
[1725458982578,0.41981566,2417.9,2417.4,0.41368]
[1725458982774,0.00620566,2417.9,2417.6,3.2078]
[1725458982979,0.00620566,2417.9,2417.5,3.2078]
[1725458983175,0.00620566,2417.9,2417.4,3.2078]
[1725458983686,0.00620566,2417.9,2417.2,1.0343]
[1725458983687,0.00620566,2417.9,2417.7,3.62142]
[1725458983882,0.00620566,2417.9,2417.1,0.20711858]
[1725458983883,0.00620566,2417.9,2417.8,0.41361]
[1725458984084,0.00620566,2417.9,2417.1,4.44924858]
[1725458984285,0.00620566,2417.9,2417.8,0.41361]
[1725458984482,5.66e-06,2417.9,2417.8,2.48169]
[1725458984682,1.39279,2419.6,2418.3,1.03383]
[1725458984683,0.3595,2419.6,2418.3,1.03383]
[1725458984987,0.41321,2420.2,2419.8,0.41327]
[1725458985190,3.62099,2420.3,2419.9,0.41326]
[1725458985386,3.62099,2420.3,2419.4,5.0]
[1725458985387,3.2078,2420.3,2419.4,5.0]
[1725458985593,1.41799,2420.8,2419.9,3.62106]
[1725458985594,3.593,2420.8,2419.9,3.62106]
[1725458985794,0.00616235,2420.2,2419.9,3.62106]
[1725458986085,0.00616235,2420.2,2419.9,10.54526]
[1725458986289,25.9078,2421.1,2419.9,10.54526]
[1725458986290,3.2078,2421.1,2421.0,0.41307]
[1725458986479,1.7680439,2423.5,2421.0,0.41307]
[1725458986480,0.375,2423.4,2421.6,3.2078]
[1725458986685,0.375,2423.4,2422.1,5.0]
[1725458986686,3.2078,2423.2,2422.1,5.0]
[1725458986879,7.3358,2423.2,2422.1,5.0]
[1725458987094,7.3358,2423.2,2421.1,0.4136]
[1725458987095,0.41298,2421.6,2421.3,8.52615019]
[1725458987393,4.23997,2422.2,2421.3,8.52615019]
[1725458987394,3.2078,2422.5,2421.4,3.2078]
[1725458987607,3.2078,2422.5,2421.8,5.0]
[1725458987891,3.2078,2422.5,2421.5,0.41297]
[1725458988193,3.2078,2422.5,2421.8,5.0]
[1725458988485,3.62061,2422.5,2421.8,5.0]
[1725458988796,3.2078,2422.5,2421.8,5.0]
[1725458988985,3.2078,2423.2,2422.1,3.2078]
[1725458989181,0.41275,2422.9,2422.4,0.00619259]
[1725458989380,1.7680439,2423.5,2422.8,3.2078]
[1725458989579,1.7680439,2423.5,2422.5,4.95]
[1725458989796,1.7680439,2423.5,2422.4,0.00619259]
[1725458989797,3.2078,2423.0,2422.4,0.00619259]
[1725458990087,1.03224,2422.1,2421.1,3.2078]
[1725458990290,1.03209,2422.4,2421.1,3.2078]
[1725458990291,3.2078,2421.8,2421.1,3.2078]
[1725458990484,0.413,2421.5,2420.8,3.2078]
[1725458990786,3.2078,2421.7,2420.8,3.2078]
[1725458990988,0.00614904,2421.5,2421.0,0.00619259]
[1725458991178,0.00614904,2421.5,2419.0,0.15138473]
[1725458991179,0.41313,2420.7,2419.9,3.2078]
[1725458991384,3.2078,2421.1,2419.9,3.2078]
[1725458991584,0.00614904,2421.5,2420.6,3.2078]
[1725458991792,0.41308,2421.0,2420.6,3.2078]
[1725458992091,1.03251,2421.4,2420.6,3.2078]
[1725458992289,0.41311,2420.8,2420.6,3.21399259]
[1725458992595,3.2078,2421.2,2420.6,0.00619259]
[1725458992785,0.41312,2420.7,2420.6,0.00619259]
[1725458993192,3.2078,2421.3,2420.6,4.13739259]
[1725458993490,3.21394904,2421.5,2420.6,0.00619259]
[1725458993691,3.21394904,2421.5,2421.2,0.41302]
[1725458993692,0.00614904,2421.5,2421.2,0.41302]
[1725458994089,0.00614904,2421.5,2421.3,4.1296]
[1725458994293,3.2078,2422.2,2421.3,3.2078]
[1725458994621,0.41293,2421.9,2421.3,3.62081]
[1725458994791,3.2078,2422.2,2420.9,3.2078]
[1725458995297,0.41296,2421.7,2421.1,0.41304]
[1725458995592,0.00619259,2421.8,2421.1,0.41305]
[1725458995791,0.41299,2421.5,2420.9,3.2078]
[1725458995993,0.00619259,2421.8,2421.0,0.41306]
[1725458996215,0.00619259,2421.8,2420.7,4.95]
[1725458996216,0.00619259,2421.8,2421.3,3.2078]
[1725458996589,0.00619259,2421.8,2421.3,3.6208]
[1725458996788,0.41912259,2421.8,2421.3,3.62081]
[1725458997088,3.21399259,2421.8,2420.7,4.95]
[1725458997296,0.41298,2421.6,2421.0,0.41307]
[1725458997496,0.00619259,2421.8,2421.2,3.2078]
[1725458997799,0.41913259,2421.8,2421.2,3.2078]
[1725458998103,0.00619259,2421.8,2421.2,3.2078]
[1725458999192,0.00619259,2421.8,2420.6,0.38479259]
[1725458999193,1.03242,2421.6,2420.7,4.95]
[1725458999398,0.00619259,2421.8,2421.1,4.95]
[1725458999699,0.00619259,2421.8,2421.1,8.1578]
[1725458999892,0.41307,2421.0,2420.7,4.95]
[1725459000200,3.2078,2421.2,2420.6,0.00619259]
[1725459000502,0.41306,2421.1,2420.6,0.41931259]
[1725459000799,0.41298,2421.5,2420.7,8.1578]
[1725459000993,0.00619259,2421.8,2421.2,0.41303]
[1725459001190,3.2078,2421.5,2420.7,3.2078]
[1725459001394,4.13579259,2421.8,2420.6,0.00619259]
[1725459001395,0.41312,2420.7,2420.6,0.00619259]
[1725459001693,3.2078,2421.1,2420.6,6.00619259]
[1725459001893,3.2078,2421.1,2420.6,0.00619259]
[1725459002084,0.41312,2420.7,2420.6,0.00619259]
[1725459002496,0.41311,2420.8,2420.6,0.00619259]
[1725459002700,25.9078,2421.1,2420.6,0.00619259]
[1725459002904,4.65373,2420.7,2420.6,0.00619259]
[1725459003197,0.41317,2420.5,2420.0,0.41323]
[1725459003390,1.03272,2420.9,2420.1,0.41321]
[1725459003589,1.03272,2420.9,2419.9,8.1578]
[1725459003590,4.24041,2421.2,2419.9,8.1578]
[1725459003899,0.3613,2421.7,2419.9,4.95]
[1725459003900,1.03272,2420.9,2419.9,4.95]
[1725459004100,0.41314,2420.6,2420.2,0.4132]
[1725459004292,3.2078,2421.0,2419.9,8.1578]
[1725459004293,0.41317,2420.4,2420.3,0.00619259]
[1725459004803,4.54517,2420.4,2420.3,0.00619259]
[1725459005502,0.00619259,2420.8,2420.3,0.00619259]
[1725459005695,0.41317,2420.4,2420.3,0.00619259]
[1725459005898,4.24073,2420.4,2418.9,3.2078]
[1725459006095,4.24073,2420.4,2418.6,3.2078]
[1725459006096,3.2078,2419.9,2418.6,3.2078]
[1725459006300,1.03327,2419.7,2418.6,3.6214]
[1725459006504,1.03334,2419.5,2418.6,3.2078]
[1725459006798,0.41344,2418.9,2418.6,3.2078]
[1725459007100,0.41346,2418.7,2418.6,3.2078]
[1725459007308,0.41344,2418.9,2418.5,0.41968259]
[1725459007596,3.2078,2418.9,2418.5,0.00619259]
[1725459007803,0.00619259,2419.0,2418.9,1.447]
[1725459008098,0.41328,2419.8,2418.9,3.2078]
[1725459008396,0.41321,2420.2,2419.9,0.41325]
[1725459008600,1.7962399,2421.9,2419.9,0.41325]
[1725459008601,3.2078,2421.0,2419.9,3.2078]
[1725459008791,0.3609,2421.5,2419.6,8.3595534]
[1725459008792,3.2078,2420.7,2419.6,8.3595534]
[1725459008995,0.41319,2420.3,2419.9,0.00619259]
[1725459009286,0.00619259,2420.4,2420.3,0.41319]
[1725459009407,0.4132,2420.3,2420.0,8.1578]
[1725459009592,0.00619259,2420.4,2419.9,0.00619259]
[1725459010112,1.39338,2421.5,2420.3,3.2078]
[1725459010404,1.03252,2421.4,2420.3,3.2078]
[1725459010599,0.3609,2421.5,2420.6,3.2078]
[1725459010801,4.24007,2422.0,2421.1,0.41305]
[1725459010802,0.41298,2421.6,2421.1,0.41305]
[1725459011001,3.2078,2421.9,2420.7,8.90989262]
[1725459011197,0.41312,2420.7,2420.6,3.2078]
[1725459011397,1.03275,2420.9,2420.0,8.1578]
[1725459011803,3.2078,2421.1,2420.0,8.1578]
[1725459011804,0.4132,2420.3,2420.0,3.2078]
[1725459011998,0.4132,2420.3,2419.5,0.7889]
[1725459011999,1.03287,2420.6,2419.5,4.95]
[1725459012200,3.2078,2420.8,2419.7,3.2078]
[1725459012412,0.41335,2419.4,2418.9,0.3531]
[1725459012698,0.41335,2419.4,2418.7,3.2078]
[1725459012699,0.41338,2419.2,2418.7,3.2078]
[1725459012903,3.2078,2419.5,2418.7,3.2078]
[1725459013297,3.2078,2419.8,2418.7,3.2078]
[1725459013497,1.03323,2419.7,2419.0,0.00619259]
[1725459013814,0.41338,2419.2,2419.0,0.00619259]
[1725459014005,0.41335,2419.4,2419.0,0.00619259]
[1725459014204,3.2078,2419.7,2419.0,0.00619259]
[1725459014506,3.2078,2419.8,2419.0,0.00619259]
[1725459014805,0.41321,2420.2,2419.6,0.41329]
[1725459015006,0.41322,2420.1,2419.6,0.4133]
[1725459015206,0.00619259,2420.3,2419.7,0.41328]
[1725459015507,0.00619259,2420.3,2419.6,3.2078]
[1725459016202,0.41329,2419.7,2419.6,3.2078]
[1725459016403,0.41329,2419.7,2419.0,0.00619259]
[1725459016404,3.2078,2420.1,2419.0,3.21399259]
[1725459016703,0.00619259,2420.3,2419.0,3.21399259]
[1725459016704,1.03919259,2420.3,2419.0,3.21399259]
[1725459016903,0.4133,2419.7,2419.1,0.41339]
[1725459017408,0.00619259,2420.3,2419.3,3.2078]
[1725459017597,1.03332,2419.5,2419.0,0.00619259]
[1725459017796,4.95,2420.1,2419.0,0.00619259]
[1725459017797,3.2078,2419.7,2419.0,0.00619259]
[1725459017995,3.2078,2420.0,2419.4,0.41334]
[1725459018279,0.41327,2419.9,2419.3,0.41334]
[1725459018403,3.21399259,2420.3,2419.3,3.2078]
[1725459018607,0.00619259,2420.3,2419.3,3.2078]
[1725459018908,0.00619259,2420.3,2419.1,9.62927832]
[1725459018909,0.41939259,2420.3,2419.7,0.41328]
[1725459019098,0.41324,2420.1,2419.6,3.6211]
[1725459019306,0.41321,2420.2,2419.7,0.41329]
[1725459019499,0.00619259,2420.3,2419.6,3.2078]
[1725459019697,0.4132,2420.2,2419.6,3.2078]
[1725459019899,0.4132,2420.2,2419.2,0.3709]
[1725459019900,0.41331,2419.7,2419.2,3.5787]
[1725459020103,1.0331,2420.0,2419.2,3.99207]
[1725459020302,0.41329,2419.7,2419.2,3.99206]
[1725459020898,0.41329,2419.7,2419.2,3.99207]
[1725459020899,0.4133,2419.7,2419.2,3.99207]
[1725459021203,4.24086,2420.1,2419.4,0.41334]
[1725459021411,0.41328,2419.8,2419.3,0.41335]
[1725459021605,3.2078,2419.8,2419.0,0.00619259]
[1725459021814,0.41326,2419.9,2419.5,0.41332]
[1725459022007,3.2078,2420.1,2419.6,0.41331]
[1725459022008,0.41325,2420.0,2419.6,0.41331]
[1725459022309,3.2078,2420.1,2419.1,4.24129]
[1725459022506,1.03920259,2420.3,2419.1,3.2078]
[1725459022507,3.2078,2419.8,2419.1,3.2078]
[1725459022702,3.2078,2420.2,2419.1,3.2078]
[1725459022905,0.41334,2419.4,2419.0,0.41959259]
[1725459023211,3.2078,2419.9,2419.0,0.00619259]
[1725459023397,1.03335,2419.5,2419.0,0.00619259]
[1725459023602,0.00619259,2420.3,2419.0,0.00619259]
[1725459023603,3.21399259,2420.3,2419.4,3.2078]
[1725459023908,4.24699259,2420.3,2419.1,3.2078]
[1725459024112,1.03302,2420.2,2419.1,3.2078]
[1725459024408,3.21399259,2420.3,2419.0,0.00619259]
[1725459024409,3.2078,2420.0,2419.0,0.00619259]
[1725459024711,0.41339,2419.1,2419.0,0.00619259]
[1725459025112,1.0334,2419.4,2419.0,0.00619259]
[1725459025113,0.41335,2419.4,2419.0,0.00619259]
[1725459025309,1.03329,2419.6,2419.0,0.41959259]
[1725459025615,3.2078,2419.9,2419.1,0.41338]
[1725459025811,3.2078,2419.5,2419.0,3.21399259]
[1725459026013,0.41339,2419.1,2419.0,3.21399259]
[1725459026309,4.54699,2419.1,2419.0,3.21399259]
[1725459026517,11.58048,2419.1,2419.0,0.00619259]
[1725459026814,1.03353,2419.0,2418.0,3.2078]
[1725459027121,0.41356,2418.2,2418.0,3.2078]
[1725459027416,8.1578,2419.3,2417.3,0.2083428]
[1725459027417,0.41358,2418.1,2417.7,3.62142]
[1725459027603,0.41358,2418.0,2417.7,3.2078]
[1725459027804,0.00619259,2418.1,2417.6,0.00619259]
[1725459028205,0.00619259,2418.1,2417.6,0.41983259]
[1725459028206,0.41359,2418.0,2417.6,0.41983259]
[1725459028407,0.00619259,2418.1,2417.7,0.41363]
[1725459028649,0.00619259,2418.1,2417.6,0.00619259]
[1725459028803,0.00619259,2418.1,2418.0,0.41358]
[1725459029214,0.00619259,2418.1,2418.0,7.75658]
[1725459029416,0.00619259,2418.1,2418.0,8.79054]
[1725459029713,0.00619259,2418.1,2418.0,3.62138]
[1725459029911,4.14139259,2418.1,2417.9,0.4136]
[1725459030107,0.00619259,2418.1,2417.9,0.41359]
[1725459030318,0.41976259,2418.1,2417.8,0.41361]
[1725459030513,4.55576259,2418.1,2417.8,3.2078]
[1725459030813,4.55576259,2418.1,2418.0,0.41358]
[1725459030814,0.00619259,2418.1,2418.0,0.41358]
[1725459031316,5.3381,2418.9,2418.0,0.41358]
[1725459031317,1.58855501,2419.3,2418.0,11.16916]
[1725459031613,0.41341,2419.1,2418.4,3.2078]
[1725459031814,3.2078,2419.7,2418.4,3.2078]
[1725459032020,0.41334,2419.5,2419.1,0.41338]
[1725459032313,0.41333,2419.5,2418.7,3.2078]
[1725459032515,0.78648,2419.8,2419.0,3.2078]
[1725459032810,0.00619259,2419.6,2419.4,0.41333]
[1725459033011,0.00619259,2419.6,2419.5,0.41332]
[1725459033216,2.07043859,2420.6,2419.5,10.1328]
[1725459033217,1.58855501,2420.6,2419.5,10.1328]
[1725459033406,0.41314,2420.6,2419.8,3.2078]
[1725459033607,0.761,2420.7,2419.8,3.2078]
[1725459033809,0.41315,2420.6,2420.2,0.4132]
[1725459034009,0.41315,2420.6,2419.6,1.03327]
[1725459034010,1.17413,2420.7,2420.3,0.41318]
[1725459034205,0.761,2420.7,2419.8,4.24099]
[1725459034412,0.761,2420.7,2419.7,4.95]
[1725459034413,0.41312,2420.8,2420.3,0.41318]
[1725459034615,0.00619259,2420.7,2420.6,0.41314]
[1725459034807,0.00619259,2420.7,2420.4,3.2078]
[1725459035010,9.0812,2420.6,2420.3,0.00619259]
[1725459035206,3.62097,2420.4,2420.3,0.00619259]
[1725459035411,0.41327,2419.9,2419.5,3.2078]
[1725459035610,5.55192,2420.5,2419.5,3.2078]
[1725459035611,3.2078,2420.3,2419.5,3.2078]
[1725459035815,0.41323,2420.1,2419.5,3.62112]
[1725459036023,3.2078,2420.3,2419.5,3.2078]
[1725459036216,3.62099,2420.3,2419.5,3.2078]
[1725459036514,0.3878,2420.5,2419.8,3.2078]
[1725459036722,0.41317,2420.4,2419.8,3.2078]
[1725459036908,0.3878,2420.5,2419.8,3.2078]
[1725459037414,3.2078,2420.3,2419.7,0.00619259]
[1725459037714,0.41325,2420.0,2419.7,0.00619259]
[1725459037912,0.41323,2420.1,2419.7,0.00619259]
[1725459038113,3.00927501,2420.5,2419.7,0.00619259]
[1725459038114,0.41318,2420.4,2419.7,0.00619259]
[1725459038422,0.00619259,2420.7,2419.7,0.00619259]
[1725459038423,1.5947476,2420.7,2419.7,0.00619259]
[1725459038715,0.00619259,2420.7,2420.5,0.41315]
[1725459039128,0.00619259,2420.7,2420.4,3.2078]
[1725459039415,0.00619259,2420.7,2419.9,4.95]
[1725459039617,0.00619259,2420.7,2420.2,0.4132]
[1725459039925,0.00619259,2420.7,2420.1,3.62101]
[1725459040120,0.00619259,2420.7,2420.3,0.41318]
[1725459040417,0.00619259,2420.7,2419.9,4.95]
[1725459040418,0.00619259,2420.7,2420.4,3.2078]
[1725459040609,0.00619259,2420.7,2420.5,4.1312]
[1725459040810,0.00619259,2420.7,2420.6,0.41314]
[1725459041015,2.00153501,2421.6,2420.6,4.1312]
[1725459041213,3.5894,2421.7,2420.6,4.1312]
[1725459041214,1.58855501,2421.7,2421.4,0.413]
[1725459041525,1.58855501,2422.0,2421.3,3.2078]
[1725459041714,1.58855501,2422.1,2421.3,3.2078]
[1725459042024,0.41294,2421.8,2421.5,0.00619259]
[1725459042317,0.00619259,2421.9,2421.5,0.00619259]
[1725459042516,0.41296,2421.7,2421.5,0.00619259]
[1725459043016,0.41297,2421.6,2421.5,0.00619259]
[1725459043322,4.54257,2421.6,2421.5,0.00619259]
[1725459043822,4.54257,2421.6,2421.5,2.59e-06]
[1725459043823,10.54257,2421.6,2421.5,2.59e-06]
[1725459044010,10.1296,2421.6,2420.2,3.2078]
[1725459044326,6.23517341,2421.7,2420.2,3.2078]
[1725459044327,3.2078,2420.7,2420.2,3.2078]
[1725459044817,3.2078,2420.4,2419.6,0.3885]
[1725459045122,1.60821292,2420.8,2419.6,0.3885]
[1725459045123,0.00619259,2420.2,2419.8,3.21399259]
[1725459045321,0.41940259,2420.2,2419.8,3.21399259]
[1725459045620,0.41940259,2420.2,2419.8,2.59e-06]
[1725459045621,1.44641,2419.9,2419.8,2.59e-06]
[1725459046125,12.61236,2419.9,2419.8,2.59e-06]
[1725459046318,12.61236,2419.9,2418.6,0.54530024]
[1725459046319,0.41344,2418.8,2418.5,0.80575302]
[1725459046524,4.81850798,2419.2,2418.5,0.80575302]
[1725459046817,4.81850798,2419.3,2418.4,3.2078]
[1725459047024,4.81850798,2419.3,2418.1,3.62136]
[1725459047025,0.41346,2418.8,2418.1,3.62136]
[1725459047212,5.85192798,2419.3,2418.1,3.2078]
[1725459047411,0.00619259,2418.9,2418.5,0.00619259]
[1725459047714,0.41346,2418.7,2418.5,0.00619259]
[1725459047915,0.41345,2418.8,2418.5,0.00619259]
[1725459048222,0.41348,2418.6,2418.5,0.00619259]
[1725459048411,7.75567,2418.7,2418.5,0.00619259]
[1725459048616,0.41963259,2418.9,2418.5,0.00619259]
[1725459048820,0.41963259,2418.9,2418.5,0.41968259]
[1725459048821,0.00619259,2418.9,2418.5,0.41968259]
[1725459049014,0.00619259,2418.9,2418.7,3.2078]
[1725459049319,0.00619259,2418.9,2418.8,0.41344]
[1725459049520,27.93176798,2419.9,2418.8,4.1344]
[1725459049736,0.41328,2419.8,2419.2,3.2078]
[1725459049917,1.61070798,2420.0,2419.2,3.2078]
[1725459050114,0.4133,2419.7,2419.2,3.2078]
[1725459050309,1.61070798,2420.0,2419.4,0.41334]
[1725459050514,3.18068065,2420.1,2419.3,0.41335]
[1725459050515,0.41327,2419.8,2419.3,0.41335]
[1725459050715,0.41327,2419.8,2419.4,0.41334]
[1725459050916,0.41327,2419.8,2419.2,3.2078]
[1725459050917,0.00619259,2419.9,2419.7,3.2078]
[1725459051115,0.00619259,2419.9,2419.8,0.41327]
[1725459051318,0.00619259,2419.9,2419.8,4.54607]
[1725459052422,0.00619259,2419.9,2419.8,4.1328]